[Event "*** Titled Tuesday Blitz"]
[Site "Chess.com"]
[Date "2019.04.02"]
[Round "3"]
[White "scaryninja"]
[Black "Off-War"]
[Result "0-1"]
[WhiteElo "2448"]
[BlackElo "2621"]
[TimeControl "180+2"]
[EndTime "14:31:44 PDT"]
[Termination "Off-War won by checkmate"]

1. e4 {[%clk 0:03:01.9]} 1... e5 {[%clk 0:01:53.7]} 2. Nf3 {[%clk 0:03:01.6]}
2... Nc6 {[%clk 0:01:55.6]} 3. Bc4 {[%clk 0:03:02.2]} 3... Bc5 {[%clk
0:01:55.4]} 4. O-O {[%clk 0:03:03.3]} 4... Nf6 {[%clk 0:01:55.2]} 5. d3 {[%clk
0:03:04.5]} 5... a6 {[%clk 0:01:55.2]} 6. c3 {[%clk 0:03:05.6]} 6... Ba7 {[%clk
0:01:56]} 7. Nbd2 {[%clk 0:03:05.2]} 7... h6 {[%clk 0:01:54.2]} 8. h3 {[%clk
0:03:05.7]} 8... d6 {[%clk 0:01:55]} 9. Re1 {[%clk 0:03:06.9]} 9... g5 {[%clk
0:01:56]} 10. Nh2 {[%clk 0:03:07.3]} 10... h5 {[%clk 0:01:56.1]} 11. Ndf1 {[%clk
0:03:05.1]} 11... Rg8 {[%clk 0:01:57.2]} 12. Be3 {[%clk 0:03:04.5]} 12... Bxe3
{[%clk 0:01:55.4]} 13. Rxe3 {[%clk 0:03:00.5]} 13... Be6 {[%clk 0:01:56.6]} 14.
Bxe6 {[%clk 0:03:00]} 14... fxe6 {[%clk 0:01:58.5]} 15. Ng3 {[%clk 0:02:57.5]}
15... g4 {[%clk 0:01:57.5]} 16. hxg4 {[%clk 0:02:55.7]} 16... Nxg4 {[%clk
0:01:57.4]} 17. Nxg4 {[%clk 0:02:55.5]} 17... hxg4 {[%clk 0:01:59.3]} 18. d4
{[%clk 0:02:51.3]} 18... Qg5 {[%clk 0:01:57.4]} 19. d5 {[%clk 0:02:50.1]} 19...
exd5 {[%clk 0:01:58.1]} 20. Qxd5 {[%clk 0:02:47.2]} 20... O-O-O {[%clk
0:01:58.7]} 21. Qe6+ {[%clk 0:02:44.5]} 21... Kb8 {[%clk 0:01:59.3]} 22. Qf5
{[%clk 0:02:44.1]} 22... Qh6 {[%clk 0:01:59]} 23. Qh5 {[%clk 0:02:44.7]} 23...
Qg7 {[%clk 0:01:59.9]} 24. Nf5 {[%clk 0:02:43.3]} 24... Qf8 {[%clk 0:02:00.7]}
25. Qh6 {[%clk 0:02:40.6]} 25... Qf7 {[%clk 0:01:59.2]} 26. Rae1 {[%clk
0:02:29.6]} 26... Rh8 {[%clk 0:01:59.7]} 27. Qg7 {[%clk 0:02:26.2]} 27... Qh5
{[%clk 0:02:00.1]} 28. Rg3 {[%clk 0:02:05]} 28... Qh1# {[%clk 0:01:57.6]} 0-1

[Event "*** Titled Tuesday Blitz"]
[Site "Chess.com"]
[Date "2019.04.02"]
[Round "3"]
[White "RitvarsReimanis"]
[Black "Supernotar"]
[Result "1/2-1/2"]
[WhiteElo "2571"]
[BlackElo "2575"]
[TimeControl "180+2"]
[EndTime "14:31:54 PDT"]
[Termination "Game drawn by agreement"]

1. d4 {[%clk 0:03:01.9]} 1... d5 {[%clk 0:03:00.7]} 2. c4 {[%clk 0:03:02.9]}
2... dxc4 {[%clk 0:03:01.3]} 3. Nf3 {[%clk 0:03:03.6]} 3... Nf6 {[%clk
0:03:02.5]} 4. e3 {[%clk 0:03:04.7]} 4... e6 {[%clk 0:03:03.7]} 5. Bxc4 {[%clk
0:03:05.5]} 5... a6 {[%clk 0:03:05.3]} 6. Bb3 {[%clk 0:03:06.9]} 6... c5 {[%clk
0:03:06]} 7. O-O {[%clk 0:03:08.3]} 7... Nc6 {[%clk 0:03:07.3]} 8. Qe2 {[%clk
0:03:09.4]} 8... cxd4 {[%clk 0:03:08.5]} 9. Rd1 {[%clk 0:03:10.8]} 9... Be7
{[%clk 0:03:08]} 10. exd4 {[%clk 0:03:11.4]} 10... O-O {[%clk 0:03:08.5]} 11. a3
{[%clk 0:03:12.8]} 11... Na5 {[%clk 0:03:05.8]} 12. Ba2 {[%clk 0:03:10.1]} 12...
b5 {[%clk 0:03:06.9]} 13. Bg5 {[%clk 0:03:08.9]} 13... Bb7 {[%clk 0:03:07.3]}
14. Nc3 {[%clk 0:03:09.1]} 14... Rc8 {[%clk 0:03:01.7]} 15. d5 {[%clk
0:03:03.4]} 15... exd5 {[%clk 0:02:57.1]} 16. Nxd5 {[%clk 0:02:36.2]} 16... Bxd5
{[%clk 0:02:42.2]} 17. Bxf6 {[%clk 0:02:21.3]} 17... Bxf6 {[%clk 0:02:39.7]} 18.
Bxd5 {[%clk 0:02:18.3]} 18... Qb6 {[%clk 0:02:39.7]} 19. Rac1 {[%clk 0:02:12.8]}
19... Nc4 {[%clk 0:02:36.1]} 20. Bxc4 {[%clk 0:02:02.8]} 20... bxc4 {[%clk
0:02:33.9]} 21. Rxc4 {[%clk 0:02:01.6]} 21... Qxb2 {[%clk 0:02:22.1]} 22. Qxb2
{[%clk 0:01:49.4]} 22... Bxb2 {[%clk 0:02:21.4]} 23. Ra4 {[%clk 0:01:50.6]}
23... Rc3 {[%clk 0:02:17.9]} 24. Rxa6 {[%clk 0:01:45.1]} 24... Rxa3 {[%clk
0:02:17.2]} 1/2-1/2

[Event "*** Titled Tuesday Blitz"]
[Site "Chess.com"]
[Date "2019.04.02"]
[Round "3"]
[White "Touching3200"]
[Black "INLOVEWITHF"]
[Result "1-0"]
[WhiteElo "2352"]
[BlackElo "2265"]
[TimeControl "180+2"]
[EndTime "14:31:57 PDT"]
[Termination "Touching3200 won by resignation"]

1. e4 {[%clk 0:02:55.4]} 1... e5 {[%clk 0:02:59.5]} 2. Nf3 {[%clk 0:02:55.7]}
2... Nc6 {[%clk 0:02:59.8]} 3. Bb5 {[%clk 0:02:56.2]} 3... a6 {[%clk 0:03:00.3]}
4. Ba4 {[%clk 0:02:55.9]} 4... d6 {[%clk 0:03:01.4]} 5. c4 {[%clk 0:02:56.4]}
5... Nf6 {[%clk 0:02:32.8]} 6. Nc3 {[%clk 0:02:51.8]} 6... Bg4 {[%clk
0:02:26.8]} 7. d3 {[%clk 0:02:47.6]} 7... Be7 {[%clk 0:02:25]} 8. h3 {[%clk
0:02:47.2]} 8... Bd7 {[%clk 0:02:24.5]} 9. Be3 {[%clk 0:02:47.1]} 9... O-O
{[%clk 0:02:24.3]} 10. d4 {[%clk 0:02:47.7]} 10... Nxd4 {[%clk 0:02:24.7]} 11.
Nxd4 {[%clk 0:02:45.5]} 11... Bxa4 {[%clk 0:02:25.1]} 12. Nxa4 {[%clk
0:02:38.2]} 12... exd4 {[%clk 0:02:22.4]} 13. Qxd4 {[%clk 0:02:40.1]} 13... b5
{[%clk 0:02:21.4]} 14. Nc3 {[%clk 0:02:39.4]} 14... bxc4 {[%clk 0:02:19.3]} 15.
Qxc4 {[%clk 0:02:39.9]} 15... Rb8 {[%clk 0:02:16.9]} 16. b3 {[%clk 0:02:37.6]}
16... c6 {[%clk 0:02:15.8]} 17. O-O {[%clk 0:02:31.5]} 17... d5 {[%clk
0:02:16.7]} 18. exd5 {[%clk 0:02:32.1]} 18... cxd5 {[%clk 0:02:18.6]} 19. Qxa6
{[%clk 0:02:33.2]} 19... d4 {[%clk 0:01:51.9]} 20. Rfd1 {[%clk 0:02:33.2]} 20...
Bc5 {[%clk 0:01:53.1]} 21. Na4 {[%clk 0:02:32.6]} 21... dxe3 {[%clk 0:01:50.2]}
22. Rxd8 {[%clk 0:02:31.4]} 22... exf2+ {[%clk 0:01:50.7]} 23. Kf1 {[%clk
0:02:30.4]} 1-0

[Event "*** Titled Tuesday Blitz"]
[Site "Chess.com"]
[Date "2019.04.02"]
[Round "3"]
[White "Oleg_Papayan"]
[Black "champ2005"]
[Result "0-1"]
[WhiteElo "2505"]
[BlackElo "2810"]
[TimeControl "180+2"]
[EndTime "14:32:17 PDT"]
[Termination "champ2005 won by resignation"]

1. e4 {[%clk 0:03:01.9]} 1... e5 {[%clk 0:03:00.3]} 2. Nf3 {[%clk 0:02:59.3]}
2... Nf6 {[%clk 0:03:01.5]} 3. Nxe5 {[%clk 0:02:59.4]} 3... d6 {[%clk
0:03:02.7]} 4. Nc4 {[%clk 0:03:00.4]} 4... Nxe4 {[%clk 0:03:02.6]} 5. Nc3 {[%clk
0:03:02]} 5... Nf6 {[%clk 0:03:01.6]} 6. d4 {[%clk 0:02:59.9]} 6... d5 {[%clk
0:02:58.6]} 7. Ne5 {[%clk 0:03:00.1]} 7... Be7 {[%clk 0:02:59.8]} 8. Bd3 {[%clk
0:02:55.6]} 8... O-O {[%clk 0:03:00.4]} 9. O-O {[%clk 0:02:56.3]} 9... Nbd7
{[%clk 0:03:01.6]} 10. Bf4 {[%clk 0:02:49.3]} 10... c6 {[%clk 0:03:02]} 11. Re1
{[%clk 0:02:49.6]} 11... Re8 {[%clk 0:03:00.5]} 12. Qf3 {[%clk 0:02:50.3]} 12...
Nf8 {[%clk 0:03:01.5]} 13. h3 {[%clk 0:02:47.7]} 13... Ng6 {[%clk 0:03:01.6]}
14. Bg3 {[%clk 0:02:44.9]} 14... Bb4 {[%clk 0:02:54]} 15. Re2 {[%clk 0:02:38.9]}
15... Be6 {[%clk 0:02:51.4]} 16. Nd1 {[%clk 0:02:17.5]} 16... Ne4 {[%clk
0:02:22]} 17. Bxe4 {[%clk 0:01:55.5]} 17... dxe4 {[%clk 0:02:23.9]} 18. Qxe4
{[%clk 0:01:57.2]} 18... Bc4 {[%clk 0:02:23.4]} 19. Re3 {[%clk 0:00:53.7]} 19...
f6 {[%clk 0:02:16.7]} 20. d5 {[%clk 0:00:55.1]} 20... cxd5 {[%clk 0:02:14.7]}
0-1

[Event "*** Titled Tuesday Blitz"]
[Site "Chess.com"]
[Date "2019.04.02"]
[Round "3"]
[White "Heineccius"]
[Black "Konavets"]
[Result "0-1"]
[WhiteElo "2493"]
[BlackElo "2800"]
[TimeControl "180+2"]
[EndTime "14:32:25 PDT"]
[Termination "Konavets won by resignation"]

1. d4 {[%clk 0:03:01.9]} 1... g6 {[%clk 0:03:01.9]} 2. Nf3 {[%clk 0:03:01.2]}
2... Bg7 {[%clk 0:03:03.3]} 3. c4 {[%clk 0:03:01.9]} 3... c5 {[%clk 0:03:04.5]}
4. d5 {[%clk 0:02:57.9]} 4... f5 {[%clk 0:03:05.6]} 5. g3 {[%clk 0:02:55.6]}
5... Nf6 {[%clk 0:03:06.8]} 6. Bg2 {[%clk 0:02:55.6]} 6... O-O {[%clk
0:03:08.7]} 7. O-O {[%clk 0:02:55.2]} 7... d6 {[%clk 0:03:09.9]} 8. Nc3 {[%clk
0:02:52.1]} 8... Na6 {[%clk 0:03:11.4]} 9. Nd2 {[%clk 0:02:46.3]} 9... Nc7
{[%clk 0:03:11.6]} 10. e4 {[%clk 0:02:46.6]} 10... a6 {[%clk 0:03:13]} 11. a4
{[%clk 0:02:44.8]} 11... Rb8 {[%clk 0:03:13.3]} 12. a5 {[%clk 0:02:34]} 12... b5
{[%clk 0:03:14.4]} 13. axb6 {[%clk 0:02:35.3]} 13... Rxb6 {[%clk 0:03:15.2]} 14.
Re1 {[%clk 0:02:28.9]} 14... f4 {[%clk 0:03:15.6]} 15. Nf3 {[%clk 0:02:17.7]}
15... Nh5 {[%clk 0:03:14.3]} 16. e5 {[%clk 0:01:51.2]} 16... Bg4 {[%clk
0:03:14.4]} 17. exd6 {[%clk 0:01:41.9]} 17... exd6 {[%clk 0:03:14.6]} 18. Qd3
{[%clk 0:01:36.9]} 18... Rb3 {[%clk 0:03:04.6]} 19. Nd2 {[%clk 0:01:17.4]} 19...
fxg3 {[%clk 0:03:05.5]} 20. hxg3 {[%clk 0:01:17]} 20... Bd4 {[%clk 0:03:06.8]}
21. Nde4 {[%clk 0:01:00.1]} 21... Bf5 {[%clk 0:03:07.2]} 22. Be3 {[%clk
0:01:01]} 22... Be5 {[%clk 0:03:00.6]} 23. Qd1 {[%clk 0:00:52.8]} 23... Rxb2
{[%clk 0:03:00.2]} 24. g4 {[%clk 0:00:53.2]} 24... Bxe4 {[%clk 0:03:01.6]} 25.
Nxe4 {[%clk 0:00:49.6]} 25... Nf4 {[%clk 0:03:01.5]} 26. Bf3 {[%clk 0:00:35.6]}
26... Qh4 {[%clk 0:03:00.9]} 27. Ng3 {[%clk 0:00:27.6]} 27... Nh3+ {[%clk
0:03:00.9]} 28. Kg2 {[%clk 0:00:28.4]} 28... Qxg3+ {[%clk 0:03:01.8]} 0-1

[Event "*** Titled Tuesday Blitz"]
[Site "Chess.com"]
[Date "2019.04.02"]
[Round "3"]
[White "Zhuu96"]
[Black "RegZryt"]
[Result "1-0"]
[WhiteElo "2961"]
[BlackElo "2573"]
[TimeControl "180+2"]
[EndTime "14:32:49 PDT"]
[Termination "Zhuu96 won by resignation"]

1. e4 {[%clk 0:02:59.6]} 1... c5 {[%clk 0:03:00.5]} 2. Nf3 {[%clk 0:02:59.4]}
2... e6 {[%clk 0:03:01.9]} 3. d4 {[%clk 0:03:00.7]} 3... cxd4 {[%clk 0:03:03.8]}
4. Nxd4 {[%clk 0:03:02.4]} 4... Nf6 {[%clk 0:03:05.2]} 5. Nc3 {[%clk 0:03:03.8]}
5... Nc6 {[%clk 0:03:06.8]} 6. Ndb5 {[%clk 0:03:00.8]} 6... Bc5 {[%clk
0:03:05.5]} 7. Bf4 {[%clk 0:02:56.8]} 7... O-O {[%clk 0:03:05.2]} 8. e5 {[%clk
0:02:54]} 8... Ne8 {[%clk 0:03:03.9]} 9. Ne4 {[%clk 0:02:55.3]} 9... Be7 {[%clk
0:02:54.6]} 10. c3 {[%clk 0:02:55.8]} 10... a6 {[%clk 0:02:40.1]} 11. Nbd6
{[%clk 0:02:54.8]} 11... Bxd6 {[%clk 0:02:37.2]} 12. exd6 {[%clk 0:02:52.4]}
12... f5 {[%clk 0:02:11]} 13. Ng5 {[%clk 0:02:50.7]} 13... Qf6 {[%clk
0:01:54.6]} 14. Bc4 {[%clk 0:02:44.5]} 14... b5 {[%clk 0:01:54.4]} 15. Bb3
{[%clk 0:02:45.3]} 15... Na5 {[%clk 0:01:51.3]} 16. Nf3 {[%clk 0:02:46.3]} 16...
Nxb3 {[%clk 0:01:50.2]} 17. axb3 {[%clk 0:02:47.3]} 17... Bb7 {[%clk 0:01:47.3]}
18. Ne5 {[%clk 0:02:47.9]} 18... Qd8 {[%clk 0:01:48.7]} 19. O-O {[%clk
0:02:42.7]} 19... Qc8 {[%clk 0:01:39.3]} 20. c4 {[%clk 0:02:42.3]} 20... bxc4
{[%clk 0:01:39.1]} 21. Rc1 {[%clk 0:02:41.4]} 21... Bd5 {[%clk 0:01:35.9]} 22.
bxc4 {[%clk 0:02:41.8]} 22... Bc6 {[%clk 0:01:36.4]} 23. b4 {[%clk 0:02:26.8]}
23... Qb7 {[%clk 0:01:36.6]} 24. f3 {[%clk 0:02:24.8]} 24... Qxb4 {[%clk
0:01:19.7]} 25. Nxc6 {[%clk 0:02:23.3]} 25... dxc6 {[%clk 0:01:21.6]} 26. d7
{[%clk 0:02:24.4]} 26... Nf6 {[%clk 0:01:22.1]} 27. Bd6 {[%clk 0:02:25.3]} 27...
Qb6+ {[%clk 0:01:17.6]} 28. c5 {[%clk 0:02:26.3]} 28... Qd8 {[%clk 0:01:16.1]}
29. Bxf8 {[%clk 0:02:27.1]} 29... Kxf8 {[%clk 0:01:17.5]} 30. Qd6+ {[%clk
0:02:25.8]} 30... Kf7 {[%clk 0:01:17.2]} 31. Qxc6 {[%clk 0:02:27.1]} 31... Ra7
{[%clk 0:01:17.8]} 32. Rfd1 {[%clk 0:02:24.4]} 32... Rxd7 {[%clk 0:01:16.9]} 33.
Rxd7+ {[%clk 0:02:23.8]} 33... Qxd7 {[%clk 0:01:18.4]} 34. Qxd7+ {[%clk
0:02:24.7]} 34... Nxd7 {[%clk 0:01:19.6]} 35. c6 {[%clk 0:02:26.3]} 35... Nb6
{[%clk 0:01:21]} 36. c7 {[%clk 0:02:27.7]} 36... Nc8 {[%clk 0:01:22.4]} 37. Rd1
{[%clk 0:02:29.1]} 1-0

[Event "*** Titled Tuesday Blitz"]
[Site "Chess.com"]
[Date "2019.04.02"]
[Round "3"]
[White "PawnEatingZombie"]
[Black "europa2012"]
[Result "1-0"]
[WhiteElo "2155"]
[BlackElo "2109"]
[TimeControl "180+2"]
[EndTime "14:32:52 PDT"]
[Termination "PawnEatingZombie won by resignation"]

1. d4 {[%clk 0:03:01.9]} 1... Nf6 {[%clk 0:03:00.3]} 2. c4 {[%clk 0:03:02.5]}
2... e6 {[%clk 0:03:01.2]} 3. Nc3 {[%clk 0:03:03.9]} 3... Bb4 {[%clk 0:03:01.2]}
4. Qc2 {[%clk 0:03:05.4]} 4... O-O {[%clk 0:03:01.4]} 5. e4 {[%clk 0:03:06.3]}
5... d5 {[%clk 0:02:59.1]} 6. e5 {[%clk 0:03:07.3]} 6... Ne4 {[%clk 0:02:59.6]}
7. Bd3 {[%clk 0:03:08.6]} 7... f5 {[%clk 0:02:59.1]} 8. exf6 {[%clk 0:03:08.1]}
8... Qxf6 {[%clk 0:02:55.1]} 9. Nf3 {[%clk 0:03:09.3]} 9... Bxc3+ {[%clk
0:02:49]} 10. bxc3 {[%clk 0:03:09.4]} 10... c5 {[%clk 0:02:26]} 11. Bxe4 {[%clk
0:02:54.5]} 11... dxe4 {[%clk 0:02:25.9]} 12. Qxe4 {[%clk 0:02:56]} 12... Nc6
{[%clk 0:02:24.6]} 13. O-O {[%clk 0:02:53.8]} 13... cxd4 {[%clk 0:02:21]} 14.
cxd4 {[%clk 0:02:54.5]} 14... Bd7 {[%clk 0:02:21.5]} 15. Bg5 {[%clk 0:02:22.3]}
15... Qf7 {[%clk 0:02:20]} 16. Bh4 {[%clk 0:02:06.4]} 16... Rae8 {[%clk
0:02:18.5]} 17. Rfe1 {[%clk 0:01:59.4]} 17... h6 {[%clk 0:02:15.4]} 18. Rad1
{[%clk 0:01:52.4]} 18... Na5 {[%clk 0:02:15]} 19. Ne5 {[%clk 0:01:49.2]} 19...
Bc6 {[%clk 0:02:07.3]} 20. Nxf7 {[%clk 0:01:34.8]} 20... Bxe4 {[%clk 0:02:07]}
21. Nd6 {[%clk 0:01:36.3]} 21... Bc2 {[%clk 0:01:56.5]} 22. Rd2 {[%clk
0:01:29.7]} 22... Ba4 {[%clk 0:01:56.6]} 23. Nxe8 {[%clk 0:01:29.9]} 23... Rxe8
{[%clk 0:01:57.7]} 24. Rc1 {[%clk 0:01:25.3]} 24... Rc8 {[%clk 0:01:57.4]} 25.
c5 {[%clk 0:01:23]} 25... b6 {[%clk 0:01:53.9]} 26. Bg3 {[%clk 0:01:20.9]} 26...
bxc5 {[%clk 0:01:53.6]} 27. dxc5 {[%clk 0:01:21.7]} 27... Nb7 {[%clk 0:01:50.2]}
28. Rd4 {[%clk 0:01:15]} 28... Rxc5 {[%clk 0:01:46.3]} 29. Rxc5 {[%clk
0:01:14.5]} 29... Nxc5 {[%clk 0:01:47.9]} 30. Rc4 {[%clk 0:01:15.6]} 1-0

[Event "*** Titled Tuesday Blitz"]
[Site "Chess.com"]
[Date "2019.04.02"]
[Round "3"]
[White "DrRiebert"]
[Black "Satscho"]
[Result "1-0"]
[WhiteElo "2553"]
[BlackElo "2297"]
[TimeControl "180+2"]
[EndTime "14:33:29 PDT"]
[Termination "DrRiebert won by resignation"]

1. e4 {[%clk 0:03:01.9]} 1... c5 {[%clk 0:02:43.4]} 2. Nf3 {[%clk 0:03:01.2]}
2... d6 {[%clk 0:02:43.9]} 3. d4 {[%clk 0:03:02.8]} 3... cxd4 {[%clk 0:02:45.8]}
4. Nxd4 {[%clk 0:03:04.7]} 4... Nf6 {[%clk 0:02:47.2]} 5. Nc3 {[%clk 0:03:05.9]}
5... a6 {[%clk 0:02:48.8]} 6. Nb3 {[%clk 0:03:06.8]} 6... e6 {[%clk 0:02:46.4]}
7. g4 {[%clk 0:03:05.4]} 7... h6 {[%clk 0:02:46.6]} 8. h4 {[%clk 0:03:05.1]}
8... Nfd7 {[%clk 0:02:46.1]} 9. Be3 {[%clk 0:03:02.2]} 9... Be7 {[%clk
0:02:47.2]} 10. Qd2 {[%clk 0:03:02]} 10... Nc6 {[%clk 0:02:47.6]} 11. O-O-O
{[%clk 0:03:01.3]} 11... Qc7 {[%clk 0:02:48.4]} 12. f4 {[%clk 0:03:02.2]} 12...
b6 {[%clk 0:02:35.6]} 13. Bg2 {[%clk 0:02:56.6]} 13... Bb7 {[%clk 0:02:36.7]}
14. g5 {[%clk 0:02:58.1]} 14... hxg5 {[%clk 0:02:36.4]} 15. hxg5 {[%clk
0:02:57.8]} 15... O-O-O {[%clk 0:02:38]} 16. g6 {[%clk 0:02:53.2]} 16... fxg6
{[%clk 0:02:31.5]} 17. Bh3 {[%clk 0:02:54]} 17... Nf8 {[%clk 0:01:54.4]} 18. Nd5
{[%clk 0:02:53.7]} 18... Qb8 {[%clk 0:01:48.5]} 19. Nxb6+ {[%clk 0:02:38.8]}
19... Kc7 {[%clk 0:01:45]} 20. Nc4 {[%clk 0:02:16.4]} 20... Nd7 {[%clk
0:01:22.1]} 21. Bxe6 {[%clk 0:02:15.1]} 21... Nc5 {[%clk 0:01:23.4]} 22. Bd5
{[%clk 0:02:04.2]} 22... Bf6 {[%clk 0:00:53.2]} 23. Nxc5 {[%clk 0:01:52]} 23...
dxc5 {[%clk 0:00:53.7]} 24. Bxc5 {[%clk 0:01:53.4]} 24... Ne7 {[%clk 0:00:24.8]}
25. Qa5+ {[%clk 0:01:48.5]} 1-0

[Event "*** Titled Tuesday Blitz"]
[Site "Chess.com"]
[Date "2019.04.02"]
[Round "3"]
[White "Chessialist"]
[Black "StoreySniper"]
[Result "1-0"]
[WhiteElo "2512"]
[BlackElo "2487"]
[TimeControl "180+2"]
[EndTime "14:33:45 PDT"]
[Termination "Chessialist won by resignation"]

1. e4 {[%clk 0:03:01.9]} 1... g6 {[%clk 0:03:00.4]} 2. h4 {[%clk 0:03:02.3]}
2... d5 {[%clk 0:02:55.9]} 3. exd5 {[%clk 0:03:03]} 3... Qxd5 {[%clk 0:02:56.8]}
4. Nc3 {[%clk 0:03:04.7]} 4... Qe5+ {[%clk 0:02:52.1]} 5. Be2 {[%clk 0:03:05.1]}
5... Bg4 {[%clk 0:02:49.6]} 6. d4 {[%clk 0:03:06.2]} 6... Bxe2 {[%clk
0:02:49.6]} 7. Ngxe2 {[%clk 0:03:08.1]} 7... Qd6 {[%clk 0:02:46.8]} 8. Bf4
{[%clk 0:03:08.5]} 8... Qd7 {[%clk 0:02:37.5]} 9. h5 {[%clk 0:03:08.5]} 9... Bg7
{[%clk 0:02:37.8]} 10. Qd2 {[%clk 0:03:09.2]} 10... Nf6 {[%clk 0:02:31]} 11. h6
{[%clk 0:03:09.9]} 11... Bf8 {[%clk 0:02:32.2]} 12. O-O-O {[%clk 0:03:11.5]}
12... Nd5 {[%clk 0:02:30.3]} 13. Nxd5 {[%clk 0:03:10.5]} 13... Qxd5 {[%clk
0:02:31]} 14. Nc3 {[%clk 0:03:10.5]} 14... Qxg2 {[%clk 0:02:20.3]} 15. d5 {[%clk
0:03:08.6]} 15... Na6 {[%clk 0:02:16.2]} 16. Qd4 {[%clk 0:03:06]} 16... f6
{[%clk 0:01:53.7]} 17. Rhe1 {[%clk 0:03:05.2]} 17... Kf7 {[%clk 0:01:20.7]} 18.
Qc4 {[%clk 0:03:01.8]} 18... g5 {[%clk 0:01:09.1]} 19. d6+ {[%clk 0:02:59.7]}
19... Kg6 {[%clk 0:01:10.3]} 20. dxe7 {[%clk 0:03:00.8]} 20... Bxh6 {[%clk
0:01:04.8]} 21. Ne4 {[%clk 0:02:22]} 21... Rhe8 {[%clk 0:00:45.8]} 22. Nxf6
{[%clk 0:02:20.7]} 22... gxf4 {[%clk 0:00:40.7]} 23. Nxe8 {[%clk 0:02:16.2]}
23... Rxe8 {[%clk 0:00:30.7]} 24. Rg1 {[%clk 0:02:14.7]} 24... f3+ {[%clk
0:00:31.7]} 25. Kb1 {[%clk 0:02:16]} 25... Rxe7 {[%clk 0:00:30.8]} 26. Rxg2+
{[%clk 0:02:14.5]} 26... fxg2 {[%clk 0:00:32.1]} 27. Qg4+ {[%clk 0:02:15.2]}
27... Kf7 {[%clk 0:00:29.4]} 28. Qxg2 {[%clk 0:02:14.2]} 28... Nc5 {[%clk
0:00:24.3]} 29. Qd5+ {[%clk 0:02:12]} 29... Ne6 {[%clk 0:00:25]} 30. Qh5+ {[%clk
0:02:12.2]} 30... Kg7 {[%clk 0:00:16.7]} 31. Rg1+ {[%clk 0:02:13.5]} 31... Ng5
{[%clk 0:00:18.1]} 32. Rxg5+ {[%clk 0:02:14.6]} 32... Kh8 {[%clk 0:00:19.6]} 33.
Re5 {[%clk 0:02:12.2]} 1-0

[Event "*** Titled Tuesday Blitz"]
[Site "Chess.com"]
[Date "2019.04.02"]
[Round "3"]
[White "m3alam"]
[Black "MathiasWomacka"]
[Result "0-1"]
[WhiteElo "2408"]
[BlackElo "2260"]
[TimeControl "180+2"]
[EndTime "14:33:49 PDT"]
[Termination "MathiasWomacka won by resignation"]

1. d4 {[%clk 0:03:01.9]} 1... Nf6 {[%clk 0:03:00]} 2. Nf3 {[%clk 0:03:02.9]}
2... e6 {[%clk 0:03:01]} 3. g3 {[%clk 0:03:04.1]} 3... c5 {[%clk 0:03:00.8]} 4.
Bg2 {[%clk 0:03:04.3]} 4... cxd4 {[%clk 0:03:01.6]} 5. O-O {[%clk 0:03:05.8]}
5... Nc6 {[%clk 0:02:59.9]} 6. Nxd4 {[%clk 0:03:04.9]} 6... Qb6 {[%clk
0:03:00.6]} 7. Nxc6 {[%clk 0:02:45.4]} 7... dxc6 {[%clk 0:03:01.3]} 8. Nd2
{[%clk 0:02:43]} 8... e5 {[%clk 0:03:01.3]} 9. b3 {[%clk 0:02:40]} 9... Qc7
{[%clk 0:02:57.9]} 10. Bb2 {[%clk 0:02:38.1]} 10... Bf5 {[%clk 0:02:53.7]} 11.
Nc4 {[%clk 0:02:38.2]} 11... Nd7 {[%clk 0:02:50]} 12. Qd2 {[%clk 0:02:28.1]}
12... b5 {[%clk 0:02:50]} 13. Nxe5 {[%clk 0:02:21.7]} 13... Nxe5 {[%clk
0:02:12.6]} 14. Bxe5 {[%clk 0:02:21.6]} 14... Qd7 {[%clk 0:02:00.4]} 15. Qc3
{[%clk 0:02:12.5]} 15... Rc8 {[%clk 0:02:00.6]} 16. Rfd1 {[%clk 0:02:10.6]}
16... Qe6 {[%clk 0:02:00.7]} 17. Bxg7 {[%clk 0:01:48.1]} 17... b4 {[%clk
0:02:00.9]} 18. Qd4 {[%clk 0:01:44.6]} 18... c5 {[%clk 0:01:52.4]} 19. Qb2
{[%clk 0:01:37.2]} 19... Rg8 {[%clk 0:01:49.1]} 20. Bf6 {[%clk 0:01:31.1]} 20...
Rg6 {[%clk 0:01:44.7]} 21. e4 {[%clk 0:01:23]} 21... Bg4 {[%clk 0:01:30.6]} 22.
e5 {[%clk 0:01:08.1]} 22... Bxd1 {[%clk 0:01:28]} 23. Rxd1 {[%clk 0:01:08.8]}
23... Be7 {[%clk 0:01:27.9]} 24. Bf1 {[%clk 0:00:50.3]} 24... Bxf6 {[%clk
0:01:25.9]} 25. Rd6 {[%clk 0:00:50.9]} 25... Qxd6 {[%clk 0:01:20.5]} 0-1

[Event "*** Titled Tuesday Blitz"]
[Site "Chess.com"]
[Date "2019.04.02"]
[Round "3"]
[White "lachesisQ"]
[Black "bascheyaro"]
[Result "1-0"]
[WhiteElo "3036"]
[BlackElo "2725"]
[TimeControl "180+2"]
[EndTime "14:33:59 PDT"]
[Termination "lachesisQ won by resignation"]

1. e4 {[%clk 0:03:01]} 1... e6 {[%clk 0:03:01.2]} 2. d4 {[%clk 0:03:01.8]} 2...
d5 {[%clk 0:03:03.1]} 3. Nc3 {[%clk 0:03:03.7]} 3... Bb4 {[%clk 0:03:03.9]} 4.
e5 {[%clk 0:03:03.3]} 4... Ne7 {[%clk 0:03:05.1]} 5. a3 {[%clk 0:03:00.8]} 5...
Bxc3+ {[%clk 0:03:06.5]} 6. bxc3 {[%clk 0:03:02.7]} 6... b6 {[%clk 0:03:08.4]}
7. h4 {[%clk 0:03:01.3]} 7... Ba6 {[%clk 0:03:08.7]} 8. Bxa6 {[%clk 0:03:00.4]}
8... Nxa6 {[%clk 0:03:10.6]} 9. Qg4 {[%clk 0:03:01.8]} 9... O-O {[%clk
0:02:59.3]} 10. h5 {[%clk 0:02:59.9]} 10... f5 {[%clk 0:02:41.4]} 11. exf6
{[%clk 0:02:47.1]} 11... Rxf6 {[%clk 0:02:42.3]} 12. Bg5 {[%clk 0:02:48.8]}
12... Rf5 {[%clk 0:02:43]} 13. Nf3 {[%clk 0:02:47.6]} 13... Qe8 {[%clk
0:02:35.3]} 14. Nh4 {[%clk 0:02:36.1]} 14... Rf7 {[%clk 0:02:36.2]} 15. O-O
{[%clk 0:02:19.8]} 15... Nf5 {[%clk 0:02:37.1]} 16. Rae1 {[%clk 0:02:20.2]}
16... Qd7 {[%clk 0:02:29.5]} 17. Nf3 {[%clk 0:02:20.8]} 17... Rff8 {[%clk
0:02:16.3]} 18. Ne5 {[%clk 0:02:19.7]} 18... Qe8 {[%clk 0:02:14.3]} 19. Qe2
{[%clk 0:02:09.4]} 19... Nb8 {[%clk 0:02:13.4]} 20. g4 {[%clk 0:02:10.4]} 20...
Nd6 {[%clk 0:02:14.5]} 21. f3 {[%clk 0:02:11.5]} 21... c5 {[%clk 0:01:42.4]} 22.
dxc5 {[%clk 0:02:06.3]} 22... bxc5 {[%clk 0:01:43.4]} 23. Nd3 {[%clk 0:02:07.7]}
23... Nd7 {[%clk 0:01:38.5]} 24. Qxe6+ {[%clk 0:02:02.6]} 24... Qxe6 {[%clk
0:01:39.4]} 25. Rxe6 {[%clk 0:02:04.5]} 25... Nb5 {[%clk 0:01:40.7]} 26. Re7
{[%clk 0:01:58.6]} 26... Rf7 {[%clk 0:01:41.5]} 27. Rfe1 {[%clk 0:01:57.2]}
27... Raf8 {[%clk 0:01:41.8]} 28. h6 {[%clk 0:01:43.2]} 28... Nxa3 {[%clk
0:01:24.3]} 29. hxg7 {[%clk 0:01:44.2]} 29... Kxg7 {[%clk 0:01:25.4]} 30. Nf4
{[%clk 0:01:45]} 30... Nc4 {[%clk 0:01:19]} 31. Ne6+ {[%clk 0:01:44.4]} 31...
Kg6 {[%clk 0:01:18.2]} 32. Rxd7 {[%clk 0:01:27.1]} 32... Rxf3 {[%clk 0:00:48]}
1-0